bitfinex/quotes_BTCUSD_20260307
["timestamp","ask_amount","ask_price","bid_price","bid_amount"]
[1772853463804,0.07313362,68368.0,68305.0,0.13181124]
[1772853463806,0.08086572,68345.0,68305.0,0.13181124]
[1772853464027,0.06419068,68320.0,68305.0,0.13219594]
[1772853464229,0.08234572,68319.0,68305.0,0.0003847]
[1772853464701,0.00148,68318.0,68305.0,0.0003847]
[1772853464916,0.08234572,68318.0,68305.0,0.0003847]
[1772853465318,0.04556749,68317.0,68305.0,0.0003847]
[1772853465485,0.04704749,68317.0,68305.0,0.13219594]
[1772853465897,0.00955099,68316.0,68306.0,0.13181124]
[1772853466217,0.00148,68315.0,68306.0,0.13181124]
[1772853466714,0.00148,68315.0,68305.0,0.0003847]
[1772853466918,0.00148,68314.0,68306.0,0.07320001]
[1772853467173,0.00336196,68313.0,68306.0,0.13181124]
[1772853467376,0.00215166,68313.0,68306.0,0.13181124]
[1772853467625,0.00172132,68312.0,68306.0,0.13181124]
[1772853468268,0.00172132,68312.0,68306.0,0.20501125]
[1772853468724,0.00148,68317.0,68305.0,0.07358501]
[1772853468917,0.00148,68317.0,68306.0,0.13181124]
[1772853469482,0.00148,68316.0,68306.0,0.13181124]
[1772853470087,0.00148,68316.0,68306.0,0.0002]
[1772853470422,0.07319036,68315.0,68306.0,0.0002]
[1772853470968,0.07466947,68316.0,68306.0,0.0002]
[1772853471171,0.07466973,68316.0,68306.0,0.0002]
[1772853471821,0.00148,68316.0,68306.0,0.0002]
[1772853472029,0.17556,68344.0,68306.0,0.0002]
[1772853472030,0.07318381,68322.0,68306.0,0.0002]
[1772853472261,0.07318381,68322.0,68307.0,0.13181124]
[1772853472457,0.07318501,68320.0,68309.0,0.13181124]
[1772853473863,0.07318501,68320.0,68308.0,0.07319786]
[1772853474265,0.07466475,68321.0,68308.0,0.07319786]
[1772853475477,0.07450991,68321.0,68308.0,0.07319786]
[1772853475673,0.07435752,68321.0,68308.0,0.07319786]
[1772853475877,0.08254697,68320.0,68307.0,0.07319786]
[1772853476330,0.08254697,68319.0,68307.0,0.07319786]
[1772853477494,0.15573334,68319.0,68307.0,0.07319786]
[1772853477695,0.15573238,68320.0,68307.0,0.07319786]
[1772853478059,0.08254697,68320.0,68307.0,0.07339786]
[1772853479514,0.08422501,68329.0,68308.0,0.14273005]
[1772853479658,0.00148,68328.0,68308.0,0.14273005]
[1772853479859,0.08402697,68328.0,68308.0,0.14273005]
[1772853480213,0.08254697,68328.0,68308.0,0.14273005]
[1772853480417,0.00148,68327.0,68308.0,0.14273005]
[1772853480655,0.08402697,68327.0,68308.0,0.14273005]
[1772853481600,0.07465858,68326.0,68310.0,0.14273005]
[1772853481797,0.01104964,68329.0,68310.0,0.14421005]
[1772853482120,0.00148,68329.0,68311.0,0.13925175]
[1772853482844,0.00148,68329.0,68313.0,0.13925175]
[1772853482845,0.00575,68321.0,68313.0,0.13925175]
[1772853483166,0.00613415,68321.0,68314.0,0.00148]
[1772853483717,0.00613415,68321.0,68315.0,0.00148]
[1772853484118,0.00613415,68321.0,68314.0,0.07319143]
[1772853484324,0.00613415,68321.0,68315.0,0.00148]
[1772853484917,0.00613415,68321.0,68315.0,0.14073175]
[1772853485319,0.0004,68325.0,68315.0,0.14073175]
[1772853485539,0.0004,68325.0,68315.0,0.14084692]
[1772853485979,0.0004,68325.0,68316.0,0.07318929]
[1772853487578,0.00022001,68321.0,68316.0,0.07318929]
[1772853487781,0.00022001,68321.0,68316.0,0.21244104]
[1772853489318,0.0004,68325.0,68316.0,0.21244104]
[1772853490450,0.06771946,68328.0,68316.0,0.21244104]
[1772853490654,0.06771946,68328.0,68316.0,0.07318929]
[1772853491527,0.0746558,68329.0,68316.0,0.07318929]
[1772853493303,0.14577898,68328.0,68316.0,0.07318929]
[1772853493656,0.14577898,68327.0,68316.0,0.07271778]
[1772853493856,0.14577898,68328.0,68316.0,0.07271778]
[1772853494056,0.14577898,68327.0,68316.0,0.07271778]
[1772853494283,0.07317751,68327.0,68316.0,0.07271778]
[1772853494458,0.08254697,68325.0,68315.0,0.073305]
[1772853494659,0.08254697,68323.0,68315.0,0.073305]
[1772853495121,0.14577898,68326.0,68315.0,0.073305]
[1772853496102,0.22832595,68326.0,68315.0,0.073305]
[1772853496321,0.14577898,68325.0,68315.0,0.073305]
[1772853496683,0.00022001,68323.0,68315.0,0.00011517]
[1772853496879,0.00170001,68323.0,68315.0,0.00011517]
[1772853498311,0.07488186,68323.0,68315.0,0.00011517]
[1772853500238,0.07318286,68322.0,68315.0,0.00011517]
[1772853500680,0.08246947,68321.0,68315.0,0.00011517]
[1772853500872,0.08246947,68319.0,68315.0,0.00011517]
[1772853501090,0.08246947,68318.0,68306.0,0.07339968]
[1772853501291,0.08246947,68316.0,68306.0,0.07487968]
[1772853501522,0.13788883,68317.0,68306.0,0.0002]
[1772853501523,0.13788883,68315.0,68306.0,0.0002]
[1772853501659,0.08246947,68313.0,68306.0,0.0002]
[1772853501861,0.08246947,68313.0,68306.0,0.07339983]
[1772853503566,0.15566229,68313.0,68306.0,0.0002]
[1772853503722,0.00148,68312.0,68306.0,0.0002]
[1772853504540,0.08512197,68312.0,68306.0,0.0002]
[1772853505786,0.07319465,68311.0,68306.0,0.0002]
[1772853506005,0.15803162,68311.0,68306.0,0.0002]
[1772853506496,0.15803162,68311.0,68300.0,0.07360537]
[1772853506497,0.07319465,68311.0,68300.0,0.0004]
[1772853506700,0.13788883,68309.0,68300.0,0.0004]
[1772853506872,0.08483697,68308.0,68300.0,0.0004]
[1772853507075,0.08483697,68306.0,68300.0,0.0004]
[1772853507609,0.08483697,68306.0,68294.0,0.00575]
[1772853507610,0.08483697,68304.0,68294.0,0.07896277]
[1772853507818,0.07320322,68303.0,68294.0,0.07896277]
[1772853508806,0.08597947,68302.0,68294.0,0.07896277]
[1772853509889,0.00148,68303.0,68294.0,0.07896277]
[1772853511422,0.00148,68304.0,68294.0,0.07896277]
[1772853511832,0.07320322,68303.0,68294.0,0.07896277]
[1772853512343,0.07320322,68303.0,68294.0,0.00575]
[1772853512747,0.07320322,68303.0,68294.0,0.07896228]
[1772853513721,0.13788998,68303.0,68294.0,0.07896228]
[1772853514115,0.13789102,68303.0,68294.0,0.07896228]
[1772853515338,0.13937102,68303.0,68294.0,0.07916228]
[1772853516702,0.07319784,68309.0,68294.0,0.07916228]
[1772853516703,0.07319036,68315.0,68295.0,0.1396797]
[1772853516875,0.00148,68312.0,68295.0,0.1396797]
[1772853519288,0.07467373,68312.0,68296.0,0.21289042]
[1772853519491,0.05566283,68312.0,68296.0,0.21289042]
[1772853519790,0.00148,68312.0,68296.0,0.21289042]
[1772853520006,0.07467382,68312.0,68296.0,0.21289042]
[1772853520216,0.14586333,68315.0,68301.0,0.1396797]
[1772853520509,0.00148,68315.0,68301.0,0.1411597]
[1772853520650,0.07330288,68318.0,68301.0,0.1411597]
[1772853520858,0.00148,68315.0,68301.0,0.1411597]
[1772853521262,0.07318822,68317.0,68302.0,0.07320429]
[1772853521461,0.00148,68316.0,68302.0,0.07320429]
[1772853524024,0.07466997,68316.0,68302.0,0.07340429]
[1772853526264,0.00148,68316.0,68302.0,0.07340429]
[1772853526464,0.00148,68316.0,68302.0,0.21308399]
[1772853526624,0.14597362,68320.0,68302.0,0.07340429]
[1772853526979,0.00148,68326.0,68310.0,0.20399175]
[1772853527141,0.00148,68326.0,68310.0,0.20547175]
[1772853528078,0.00148,68326.0,68312.0,0.07319358]
[1772853528255,0.07339719,68328.0,68316.0,0.06431205]
[1772853528256,0.00022001,68328.0,68316.0,0.06431205]
[1772853528656,0.00022001,68328.0,68316.0,0.06579205]
[1772853528993,0.00170001,68328.0,68316.0,0.00148]
[1772853529645,0.00022001,68328.0,68316.0,0.00148]
[1772853530266,0.00022001,68328.0,68317.0,0.07318822]
[1772853532662,0.00022001,68328.0,68318.0,0.06431205]
[1772853532989,0.00022001,68328.0,68318.0,0.06425303]
[1772853533829,0.00022001,68328.0,68317.0,0.07318822]
[1772853535016,0.07317196,68333.0,68319.0,0.1396797]
[1772853535017,0.00148,68333.0,68319.0,0.1396797]
[1772853535436,0.07317017,68334.0,68319.0,0.1396797]
[1772853535832,0.00148,68333.0,68319.0,0.1396797]
[1772853537070,0.07317215,68332.0,68320.0,0.07318501]
[1772853537635,0.13950464,68333.0,68320.0,0.07318501]
[1772853537819,0.0004001,68599.0,68320.0,0.07318501]
[1772853537820,0.11646044,68352.0,68320.0,0.07318501]
[1772853538044,0.11646044,68352.0,68340.0,0.06425303]
[1772853538045,0.06485054,68349.0,68340.0,0.06425303]
[1772853538254,0.06485054,68347.0,68330.0,0.06425303]
[1772853538695,0.06485054,68346.0,68330.0,0.06425303]
[1772853539142,0.07327281,68346.0,68331.0,0.07317323]
[1772853539390,0.06485054,68345.0,68331.0,0.07317323]
[1772853541833,0.06504823,68344.0,68331.0,0.07317323]
[1772853543079,0.00148,68343.0,68331.0,0.07317323]
[1772853543233,0.06652823,68343.0,68331.0,0.07317323]
[1772853545424,0.07316145,68342.0,68331.0,0.06709613]
[1772853545633,0.06518895,68346.0,68331.0,0.06709613]
[1772853545843,0.06518895,68346.0,68326.0,0.0731779]
[1772853545844,0.06506639,68342.0,68326.0,0.0731779]
[1772853546043,0.14026308,68339.0,68328.0,0.00148]
[1772853546195,0.06506639,68338.0,68330.0,0.06425303]
[1772853548571,0.06506639,68338.0,68331.0,0.07317323]
[1772853550533,0.14026308,68337.0,68331.0,0.07317323]
[1772853550732,0.06595184,68338.0,68330.0,0.07317323]
[1772853552074,0.06597932,68336.0,68327.0,0.07317751]
[1772853552282,0.06745932,68336.0,68321.0,0.07893286]
[1772853552468,0.06597932,68332.0,68321.0,0.07893286]
[1772853552656,0.06597932,68330.0,68321.0,0.07893286]
[1772853553405,0.06597932,68329.0,68321.0,0.07893286]
[1772853553624,0.07317323,68331.0,68309.0,0.14548273]
[1772853553625,0.06597932,68327.0,68309.0,0.07319649]
[1772853553858,0.00148,68326.0,68310.0,0.06425303]
[1772853554060,0.04172967,68325.0,68310.0,0.06425303]
[1772853554260,0.04320967,68325.0,68310.0,0.06425303]
[1772853554710,0.04172967,68325.0,68310.0,0.06425303]
[1772853554906,0.04320967,68324.0,68311.0,0.07319465]
[1772853555351,0.04320967,68323.0,68311.0,0.0735788]
[1772853555730,0.04172967,68323.0,68311.0,0.0735788]
[1772853555932,0.04255944,68321.0,68311.0,0.0735788]
[1772853556305,0.00148,68320.0,68311.0,0.0737788]
[1772853556722,0.04255944,68321.0,68311.0,0.0737788]
[1772853556924,0.00148,68320.0,68311.0,0.0737788]
[1772853557143,0.04403944,68320.0,68311.0,0.0737788]
[1772853557460,0.00148,68319.0,68311.0,0.0737788]
[1772853558248,0.04255944,68320.0,68311.0,0.0737788]
[1772853558457,0.35158536,68355.0,68311.0,0.0737788]
[1772853558611,0.35158536,68355.0,68312.0,0.00148]
[1772853558612,0.14026308,68332.0,68312.0,0.00148]
[1772853558811,0.07338253,68343.0,68313.0,0.07319251]
[1772853558812,0.07317644,68328.0,68313.0,0.07319251]
[1772853559035,0.04248611,68327.0,68313.0,0.07319251]
[1772853559829,0.00148,68326.0,68313.0,0.07319251]
[1772853560159,0.00148,68326.0,68325.0,0.0004]
[1772853560512,0.04403192,68326.0,68325.0,0.0004]
[1772853561260,0.04403192,68326.0,68312.0,0.07467278]
[1772853561261,0.03647482,68324.0,68312.0,0.07467325]
[1772853561879,0.00148,68323.0,68312.0,0.07467325]
[1772853562283,0.00148,68322.0,68312.0,0.07467325]
[1772853562688,0.03647482,68324.0,68312.0,0.07467325]
[1772853562935,0.00148,68323.0,68312.0,0.07467325]
[1772853563340,0.00148,68322.0,68312.0,0.07467325]
[1772853563727,0.10965569,68324.0,68312.0,0.07467325]
[1772853563922,0.00148,68323.0,68312.0,0.07467325]
[1772853564130,0.04255231,68323.0,68312.0,0.07467325]
[1772853564336,0.00148,68322.0,68312.0,0.07467325]
[1772853564789,0.04107231,68323.0,68312.0,0.07467325]
[1772853564937,0.00148,68322.0,68312.0,0.07467325]
[1772853565920,0.00148,68322.0,68312.0,0.07487325]
[1772853566354,0.04107231,68323.0,68312.0,0.07487325]
[1772853566553,0.00148,68322.0,68312.0,0.07487325]
[1772853566916,0.04255231,68323.0,68312.0,0.07487325]
[1772853567337,0.04107231,68323.0,68312.0,0.07487325]
[1772853567538,0.04255231,68323.0,68312.0,0.07487325]
[1772853568856,0.04107231,68323.0,68312.0,0.07487325]
[1772853569038,0.04255231,68323.0,68312.0,0.07487325]
[1772853569269,0.04107231,68323.0,68312.0,0.07487325]
[1772853569578,0.04255231,68323.0,68312.0,0.07487325]
[1772853570256,0.04107231,68323.0,68312.0,0.07487325]
[1772853570558,0.04255231,68323.0,68312.0,0.07487325]
[1772853570795,0.04107231,68323.0,68312.0,0.07487325]
[1772853570946,0.04255231,68323.0,68312.0,0.07487325]
[1772853571797,0.04107231,68323.0,68312.0,0.07487325]
[1772853571995,0.04255231,68323.0,68312.0,0.07487325]
[1772853572771,0.04107231,68323.0,68312.0,0.07487325]
[1772853572968,0.04255231,68323.0,68312.0,0.07487325]
[1772853574290,0.04107231,68323.0,68312.0,0.07487325]
[1772853574526,0.04255231,68323.0,68312.0,0.07487325]
[1772853575336,0.04107231,68323.0,68312.0,0.07487325]
[1772853575651,0.04255231,68323.0,68312.0,0.07487325]
[1772853575788,0.04107231,68323.0,68312.0,0.07487325]
[1772853575982,0.04255231,68323.0,68312.0,0.07487325]
[1772853576806,0.04106633,68322.0,68312.0,0.07487325]
[1772853581519,0.04254633,68322.0,68312.0,0.07487325]
[1772853581781,0.00148,68322.0,68312.0,0.07487325]
[1772853582192,0.0410952,68323.0,68312.0,0.07487325]
[1772853583179,0.0410952,68323.0,68312.0,0.07339325]
[1772853583746,0.0425752,68323.0,68312.0,0.07339325]
[1772853584177,0.0410952,68323.0,68312.0,0.07339325]
[1772853584382,0.0425752,68323.0,68312.0,0.07339325]
[1772853584714,0.0410952,68323.0,68312.0,0.07339325]
[1772853584922,0.0425752,68323.0,68312.0,0.07339325]
[1772853586215,0.0410952,68323.0,68312.0,0.07339325]
[1772853586417,0.0425752,68323.0,68312.0,0.07339325]
[1772853587216,0.0410952,68323.0,68312.0,0.07339325]
[1772853587420,0.04119936,68321.0,68312.0,0.07339325]
[1772853590672,0.04119936,68321.0,68312.0,0.05521529]
[1772853594519,0.00148,68327.0,68313.0,0.14390319]
[1772853594896,0.00022001,68329.0,68313.0,0.14390319]
[1772853594897,0.00148,68328.0,68313.0,0.14390319]
[1772853595498,0.00022001,68329.0,68318.0,0.06426666]
[1772853595721,0.00170001,68329.0,68319.0,0.14390319]
[1772853596321,0.00170001,68329.0,68312.0,0.20059848]
[1772853596654,0.04296013,68329.0,68313.0,0.14390319]
[1772853596860,0.04126012,68328.0,68313.0,0.14390319]
[1772853598808,0.04126012,68328.0,68314.0,0.07319143]
[1772853599606,0.04274012,68328.0,68314.0,0.07319143]
[1772853600956,0.04467735,68336.0,68319.0,0.14031248]
[1772853601155,0.14922742,68341.0,68318.0,0.06426666]
[1772853601156,0.07338351,68341.0,68321.0,0.14031248]
[1772853601360,0.00170001,68335.0,68321.0,0.14031248]
[1772853602009,0.00022001,68335.0,68321.0,0.14031248]
[1772853602838,0.00022001,68335.0,68322.0,0.07318286]
[1772853603045,0.00022001,68335.0,68323.0,0.13985936]
[1772853603515,0.07338351,68341.0,68326.0,0.13985936]
[1772853603516,0.00022001,68341.0,68326.0,0.13985936]
[1772853603660,0.00148,68340.0,68330.0,0.06426666]
[1772853605224,0.00148,68340.0,68331.0,0.07317323]
[1772853605974,0.00022001,68341.0,68331.0,0.07317323]
[1772853606184,0.00022001,68342.0,68332.0,0.14361265]
[1772853606587,0.00022001,68343.0,68332.0,0.14361265]
[1772853606588,1e-08,68343.0,68332.0,0.14133936]
[1772853606836,1e-08,68343.0,68333.0,0.13985936]
[1772853607422,1e-08,68343.0,68334.0,0.07317001]
[1772853607423,0.00011533,68343.0,68334.0,0.07317001]
[1772853608534,0.00575,68348.0,68334.0,0.07317001]
[1772853608764,0.07314816,68355.0,68334.0,0.07317001]
[1772853608765,0.03769539,68351.0,68338.0,0.06426666]
[1772853608971,0.07314816,68355.0,68338.0,0.10230684]
[1772853609339,0.11084355,68355.0,68340.0,0.03656018]
[1772853609543,0.00170001,68354.0,68341.0,0.07316252]
[1772853609751,0.07484861,68354.0,68341.0,0.07316252]
[1772853609926,0.07484861,68354.0,68334.0,0.00011532]
[1772853609927,0.07484861,68354.0,68315.0,0.07319033]
[1772853609928,0.17433204,68346.0,68315.0,0.07319033]
[1772853610129,0.17433204,68346.0,68313.0,0.07319241]
[1772853610130,0.03769539,68338.0,68313.0,0.07319241]
[1772853610331,0.06426666,68340.0,68313.0,0.07319241]
[1772853610332,0.03769539,68334.0,68313.0,0.07319241]
[1772853610529,0.03769539,68332.0,68313.0,0.07319241]
[1772853610758,0.03769539,68328.0,68313.0,0.07319241]
[1772853610969,0.03917539,68327.0,68313.0,0.07319241]
[1772853611412,0.03917539,68327.0,68312.0,0.0002]
[1772853611413,0.07317858,68326.0,68312.0,0.0002]
[1772853611621,0.03769539,68325.0,68312.0,0.0002]
[1772853612010,0.03769539,68323.0,68312.0,0.0002]
[1772853612438,0.03917539,68323.0,68312.0,0.0002]
[1772853612802,0.03769539,68323.0,68312.0,0.00058415]
[1772853612995,0.03917539,68323.0,68312.0,0.00058415]
[1772853613417,0.11235765,68323.0,68313.0,0.07319251]
[1772853613819,0.03769539,68322.0,68313.0,0.07319251]
[1772853617367,0.11087873,68322.0,68313.0,0.07319251]
[1772853619603,0.07318182,68323.0,68313.0,0.07319251]
[1772853619814,0.07466182,68323.0,68313.0,0.07319251]
[1772853620239,0.07318182,68323.0,68313.0,0.07319251]
[1772853620431,0.07318182,68323.0,68311.0,0.07339251]
[1772853620432,0.03769539,68322.0,68311.0,0.0733939]
[1772853620636,0.03807978,68322.0,68311.0,0.0733939]
[1772853621211,0.03955978,68322.0,68311.0,0.0733939]
[1772853621660,0.11274366,68322.0,68311.0,0.0733939]
[1772853622000,0.11126366,68322.0,68311.0,0.0733939]
[1772853622212,0.11274366,68322.0,68311.0,0.0733939]
[1772853622418,0.11274366,68322.0,68313.0,0.0002]
[1772853623889,0.11126366,68322.0,68313.0,0.0002]
[1772853624062,0.11274366,68322.0,68313.0,0.0002]
[1772853624877,0.11126366,68322.0,68313.0,0.0002]
[1772853625059,0.11274366,68322.0,68313.0,0.0002]
[1772853625392,0.11126366,68322.0,68313.0,0.0002]
[1772853625693,0.11274366,68322.0,68313.0,0.0002]
[1772853625898,0.11126366,68322.0,68313.0,0.0002]
[1772853626097,0.11274366,68322.0,68313.0,0.0002]
[1772853626864,0.11126366,68322.0,68313.0,0.0002]
[1772853627061,0.11274366,68322.0,68313.0,0.0002]
[1772853628880,0.07356827,68322.0,68313.0,0.0002]
[1772853629124,0.03769539,68321.0,68313.0,0.0002]
[1772853629788,0.00148,68320.0,68313.0,0.0002]
[1772853629988,0.07318608,68319.0,68313.0,0.0002]
[1772853630210,0.07466608,68319.0,68313.0,0.0002]
[1772853630584,0.07318608,68319.0,68313.0,0.0002]
[1772853630793,0.07466608,68319.0,68313.0,0.0002]
[1772853631657,0.07318608,68319.0,68313.0,0.0002]
[1772853632287,0.07466501,68320.0,68313.0,0.0002]
[1772853633226,0.07318501,68320.0,68313.0,0.0002]
[1772853633377,0.07466501,68320.0,68313.0,0.0002]
[1772853633580,0.07318466,68321.0,68313.0,0.0002]
[1772853633780,0.07466466,68321.0,68313.0,0.0002]
[1772853634100,0.07318466,68321.0,68313.0,0.0002]
[1772853634302,0.07466466,68321.0,68313.0,0.0002]
[1772853634600,0.07318466,68321.0,68313.0,0.0002]
[1772853634854,0.00148,68320.0,68313.0,0.0002]
[1772853635608,0.07318466,68321.0,68313.0,0.0002]
[1772853635815,0.00148,68320.0,68313.0,0.0002]
[1772853636456,0.00148,68320.0,68313.0,0.0004548]
[1772853636635,0.07318466,68321.0,68313.0,0.0004548]
[1772853636796,0.00148,68320.0,68313.0,0.0004548]
[1772853637166,0.07318466,68321.0,68313.0,0.0004548]
[1772853637367,0.00148,68320.0,68313.0,0.0004548]
[1772853638125,0.07318466,68321.0,68313.0,0.0004548]
[1772853638386,0.00148,68320.0,68313.0,0.0004548]
[1772853639003,0.00148,68320.0,68308.0,0.07319572]
[1772853639004,0.14402302,68320.0,68280.0,0.36417768]
[1772853639174,0.14402302,68320.0,68267.0,0.00575]
[1772853639175,0.14402302,68320.0,68269.0,0.18456838]
[1772853639176,0.03641784,68289.0,68269.0,0.18456838]
[1772853639374,0.03641784,68281.0,68269.0,0.14771919]
[1772853639712,0.03641784,68281.0,68261.0,0.07324816]
[1772853639713,0.03641784,68279.0,68263.0,0.00148]
[1772853640041,0.03641784,68279.0,68263.0,0.14919919]
[1772853640158,0.07323003,68278.0,68265.0,0.07324397]
[1772853640357,0.07323003,68278.0,68265.0,0.07335912]
[1772853640567,0.03641784,68292.0,68270.0,0.14771919]
[1772853640767,0.03641784,68288.0,68270.0,0.18456838]
[1772853641096,0.03641784,68287.0,68270.0,0.18456838]
[1772853641279,0.14402302,68286.0,68265.0,0.22107831]
[1772853641480,0.03789784,68285.0,68266.0,0.03684919]
[1772853641920,0.03789784,68285.0,68267.0,0.03684919]
[1772853642068,0.03789784,68285.0,68268.0,0.00148]
[1772853642276,0.03641784,68283.0,68269.0,0.07323968]
[1772853643781,0.03641784,68283.0,68269.0,0.06823968]
[1772853644521,0.07322574,68282.0,68269.0,0.06823968]
[1772853647241,0.07322574,68282.0,68270.0,0.06436132]
[1772853648239,0.07322574,68282.0,68269.0,0.06823968]
[1772853649010,0.10964358,68282.0,68269.0,0.06823968]
[1772853650998,0.10964358,68282.0,68269.0,0.10508887]
[1772853651158,0.07322574,68282.0,68270.0,0.10121051]
[1772853651760,0.07322574,68283.0,68271.0,0.07323753]
[1772853651960,0.00022001,68282.0,68271.0,0.07323753]
[1772853652624,0.00022001,68282.0,68269.0,0.06843968]
[1772853652830,0.03641784,68281.0,68269.0,0.06843968]
[1772853654247,0.03641784,68279.0,68269.0,0.0002]
[1772853654452,0.00148,68278.0,68269.0,0.0002]
[1772853654651,0.03641784,68277.0,68269.0,0.0002]
[1772853655039,0.03641784,68277.0,68260.0,0.28532976]
[1772853655040,0.03641784,68276.0,68262.0,0.07344715]
[1772853655351,0.03641784,68274.0,68262.0,0.00031546]
[1772853655939,0.03641784,68274.0,68262.0,0.07356239]
[1772853656399,0.10965323,68273.0,68262.0,0.07356239]
[1772853656606,0.00148,68272.0,68262.0,0.07356239]
[1772853656743,0.03789784,68272.0,68262.0,0.07356239]
[1772853657551,0.03641784,68271.0,68262.0,0.00031546]
[1772853657964,0.03641784,68271.0,68261.0,0.0002]
[1772853658604,0.07471861,68270.0,68261.0,0.0002]
[1772853658761,0.11171419,68270.0,68261.0,0.0002]
[1772853658958,0.07471861,68270.0,68261.0,0.0002]
[1772853659145,0.00148,68269.0,68261.0,0.03858397]
[1772853659333,0.00148,68268.0,68261.0,0.03858397]
[1772853659535,0.07323217,68276.0,68261.0,0.03858397]
[1772853659772,0.00148,68275.0,68261.0,0.03858397]
[1772853660384,0.07323539,68273.0,68262.0,0.07324719]
[1772853661217,0.00148,68272.0,68262.0,0.07324719]
[1772853662193,0.00148,68272.0,68262.0,0.07344719]
[1772853664117,0.07323753,68271.0,68262.0,0.07344719]
[1772853664518,0.07471665,68272.0,68262.0,0.07344719]
[1772853665380,0.00148,68271.0,68262.0,0.07344719]
[1772853666133,0.07471778,68271.0,68262.0,0.07344719]
[1772853667352,0.07471778,68271.0,68262.0,0.0002]
[1772853667353,0.03699558,68270.0,68262.0,0.0002]
[1772853668168,0.07323968,68269.0,68262.0,0.0002]
[1772853668363,0.00148,68268.0,68262.0,0.0002]
[1772853669996,0.14616535,68267.0,68262.0,0.0002]
[1772853670198,0.14616535,68266.0,68262.0,0.0002]
[1772853670420,0.21940855,68266.0,68262.0,0.0002]
[1772853671343,0.0732432,68266.0,68262.0,0.0002]
[1772853672445,0.0732432,68266.0,68257.0,0.10844643]
[1772853672948,0.0732432,68266.0,68258.0,0.03665228]
[1772853673509,0.0742432,68266.0,68258.0,0.03665228]
[1772853674530,0.0732432,68266.0,68259.0,0.07325041]
[1772853674705,0.0732432,68266.0,68259.0,0.10990269]
[1772853674907,0.21940818,68267.0,68259.0,0.10990269]
[1772853675154,0.0732432,68266.0,68259.0,0.10990269]
[1772853678775,0.0732432,68266.0,68259.0,0.03665228]
[1772853681284,0.0732432,68266.0,68259.0,0.10990204]
[1772853682121,0.21940855,68266.0,68259.0,0.10990204]
[1772853682566,0.21940855,68266.0,68259.0,0.07324976]
[1772853682778,0.21940855,68266.0,68260.0,0.03746835]
[1772853683272,0.14616535,68265.0,68260.0,0.03746835]
[1772853683667,0.14616535,68265.0,68260.0,0.11071768]
[1772853684101,0.07324283,68267.0,68260.0,0.07324933]
[1772853684333,0.07324283,68267.0,68261.0,0.03746835]
[1772853684985,0.0732432,68266.0,68261.0,0.03746835]
[1772853685133,0.07324283,68267.0,68261.0,0.03746835]
[1772853687838,0.07324283,68267.0,68260.0,0.07324933]
[1772853688248,0.07324182,68269.0,68259.0,0.07344976]
[1772853688452,0.07323558,68273.0,68263.0,0.03746835]
[1772853688651,0.07323558,68273.0,68259.0,0.07344976]
[1772853688652,0.00170001,68272.0,68265.0,0.03746835]
[1772853689251,0.07493679,68272.0,68265.0,0.03746835]
[1772853689875,0.07345679,68272.0,68266.0,0.0732429]
[1772853690076,0.00148,68271.0,68266.0,0.0732429]
[1772853692006,0.00148,68271.0,68262.0,0.11071488]
[1772853692518,0.07323861,68270.0,68262.0,0.11071488]
[1772853695799,0.07493862,68271.0,68262.0,0.11071488]
[1772853696199,0.07493862,68271.0,68262.0,0.07324653]
[1772853696419,0.07493862,68271.0,68263.0,0.03746835]
[1772853699302,0.07493862,68271.0,68264.0,0.03198855]
[1772853702910,0.07345862,68271.0,68264.0,0.03198855]
[1772853703126,0.07493862,68271.0,68264.0,0.03198855]
[1772853705002,0.00170001,68271.0,68261.0,0.07324766]
[1772853705201,0.00170001,68271.0,68263.0,0.14058432]
[1772853705383,0.00170001,68271.0,68264.0,0.03746835]
[1772853707183,0.00170001,68271.0,68265.0,0.07324397]
[1772853707810,0.00022001,68271.0,68265.0,0.07324397]
[1772853731526,0.00022001,68271.0,68264.0,0.0002]
[1772853739653,0.00022001,68271.0,68264.0,0.00016324]
[1772853740998,0.07345793,68271.0,68264.0,0.00016324]
[1772853741874,0.00022001,68271.0,68264.0,0.00016324]
[1772853759310,0.14647511,68277.0,68264.0,0.00016324]
[1772853759530,0.00597001,68321.0,68267.0,0.06436252]
[1772853759531,0.03484986,68293.0,68267.0,0.06436252]
[1772853759882,0.03484986,68293.0,68267.0,0.00148]
[1772853759883,0.13576882,68287.0,68267.0,0.00148]
[1772853760049,0.03484986,68277.0,68267.0,0.00148]
[1772853760251,0.03632986,68277.0,68267.0,0.00148]
[1772853761032,0.03632986,68277.0,68267.0,0.00248]
[1772853761271,0.07323217,68276.0,68268.0,0.07324075]
[1772853762010,0.07493064,68278.0,68268.0,0.07324075]
[1772853762212,0.07493064,68278.0,68268.0,0.13760327]
[1772853762411,0.07345064,68278.0,68268.0,0.13760327]
[1772853762550,0.07493064,68278.0,68268.0,0.13760327]
[1772853762748,0.07493064,68278.0,68268.0,0.13779187]
[1772853762968,0.1097805,68278.0,68268.0,0.13779187]
[1772853763608,0.1083005,68278.0,68268.0,0.13779187]
[1772853764520,0.1083005,68278.0,68268.0,0.13777531]
[1772853764721,0.07493064,68278.0,68268.0,0.13777531]
[1772853765133,0.07697643,68294.0,68268.0,0.13777531]
[1772853765332,0.07332951,68293.0,68281.0,0.03479926]
[1772853765709,0.07332951,68293.0,68281.0,0.07322681]
[1772853766896,0.00022001,68285.0,68281.0,0.07322681]
[1772853772484,0.00170001,68292.0,68281.0,0.07322681]
[1772853772672,0.07491534,68292.0,68281.0,0.07322681]
[1772853772976,0.07343534,68292.0,68281.0,0.07322681]
[1772853773519,0.00022001,68285.0,68281.0,0.07322681]
[1772853773723,0.07319894,68307.0,68281.0,0.07322681]
[1772853774153,0.03484986,68302.0,68281.0,0.07322681]
[1772853774323,0.03484986,68299.0,68281.0,0.07322681]
[1772853774525,0.03484986,68297.0,68281.0,0.07322681]
[1772853774876,0.03484986,68297.0,68281.0,0.07422681]
[1772853775077,0.03484986,68297.0,68281.0,0.07322681]
[1772853775284,0.03484986,68297.0,68281.0,0.10802607]
[1772853777095,0.07321072,68296.0,68281.0,0.10802607]
[1772853777294,0.07321072,68296.0,68282.0,0.03479926]
[1772853780142,0.03425534,68295.0,68283.0,0.07322466]
[1772853782092,0.07321287,68294.0,68283.0,0.07322466]
[1772853784144,0.03425534,68293.0,68282.0,0.07322574]
[1772853784391,0.07321287,68294.0,68282.0,0.07322574]
[1772853785201,0.07321287,68294.0,68283.0,0.03496326]
[1772853786188,0.07321287,68294.0,68284.0,0.07322359]
[1772853787661,0.14034032,68291.0,68274.0,0.07323324]
[1772853787864,0.03623888,68289.0,68274.0,0.07323324]
[1772853788017,0.03623888,68289.0,68281.0,0.0002]
[1772853788229,0.0732193,68288.0,68281.0,0.0002]
[1772853788409,0.0732193,68288.0,68266.0,0.07472075]
[1772853788410,0.14034032,68286.0,68262.0,0.0002]
[1772853788609,0.03623888,68279.0,68264.0,0.07340795]